bitfinex/quotes_SOLUSD_20250617
["timestamp","ask_amount","ask_price","bid_price","bid_amount"]
[1750173723364,11.52853303,147.91,147.86,11.52853303]
[1750173723567,11.52853303,147.89,147.84,12.11285193]
[1750173723771,11.52853303,147.88,147.84,12.11285193]
[1750173723992,6.76183625,147.89,147.84,12.11285193]
[1750173724296,11.52853303,147.88,147.84,23.64138496]
[1750173724759,6.76183625,147.89,147.84,5.34886289]
[1750173724959,6.76183625,147.89,147.84,12.11280915]
[1750173724960,11.52853303,147.87,147.84,12.11280915]
[1750173725170,37.52853303,147.89,147.84,23.64134218]
[1750173725398,11.52853303,147.88,147.84,23.64134218]
[1750173725765,186.52853303,147.89,147.85,11.52853303]
[1750173725964,11.52853303,147.88,147.84,12.11280915]
[1750173726378,11.52853303,147.88,147.84,23.64134218]
[1750173726578,175.0,147.89,147.84,12.11280915]
[1750173726794,160.52853303,147.89,147.85,11.52853303]
[1750173727173,149.0,147.89,147.88,11.52853303]
[1750173727371,149.0,147.94,147.88,11.52853303]
[1750173727572,8.22,147.95,147.93,11.52853303]
[1750173727784,19.74853303,147.95,147.91,11.52853303]
[1750173728693,11.52853303,147.94,147.9,6.76113877]
[1750173728996,8.22,147.95,147.91,11.52853303]
[1750173728997,19.74853303,147.95,147.91,11.52853303]
[1750173729772,8.22,147.95,147.89,6.7617824]
[1750173729965,19.74853303,147.95,147.91,11.52853303]
[1750173730195,11.52853303,147.94,147.9,11.52853303]
[1750173730369,11.52853303,147.94,147.89,6.7617824]
[1750173730568,8.22,147.95,147.9,11.52853303]
[1750173730767,8.22,147.95,147.92,11.52853303]
[1750173730971,8.22,147.95,147.91,11.52853303]
[1750173731189,19.74853303,147.95,147.89,23.66623841]
[1750173731391,19.74853303,147.95,147.91,11.52853303]
[1750173731770,19.74853303,147.95,147.92,6.76041103]
[1750173732589,8.22,147.95,147.92,6.76041103]
[1750173732898,11.52853303,147.95,147.91,18.28920429]
[1750173733101,11.52853303,147.94,147.91,6.76067126]
[1750173733482,11.52853303,147.95,147.91,18.28920429]
[1750173733675,9.69768022,147.95,147.91,18.28920429]
[1750173734275,149.0,147.96,147.91,6.76067126]
[1750173734276,155.75866116,147.96,147.91,6.76067126]
[1750173734581,149.0,147.96,147.91,23.66284149]
[1750173734887,155.72056404,147.96,147.92,6.72056404]
[1750173735092,155.72056404,147.96,147.91,30.38340553]
[1750173735292,155.72056404,147.96,147.92,6.72056404]
[1750173735872,149.0,147.96,147.92,13.48052561]
[1750173736113,155.72056404,147.96,147.92,13.48052561]
[1750173736278,149.0,147.96,147.93,6.72056404]
[1750173736680,155.72056404,147.96,147.92,13.48052561]
[1750173736999,6.72056404,147.94,147.9,13.48169687]
[1750173737210,6.72056404,147.93,147.9,6.76113283]
[1750173737415,6.72056404,147.93,147.89,13.48222725]
[1750173737619,149.0,147.95,147.89,6.76166321]
[1750173737917,6.72056404,147.9,147.84,5.34886289]
[1750173738142,26.0,147.86,147.84,5.34886289]
[1750173738432,0.28432314,147.88,147.84,5.34886289]
[1750173740233,34.1,147.93,147.87,6.76245269]
[1750173740909,6.72056404,147.92,147.87,6.76245269]
[1750173741107,6.72056404,147.92,147.88,6.72056404]
[1750173741313,32.72056404,147.93,147.88,6.72056404]
[1750173741501,1.5059,147.96,147.89,6.72056404]
[1750173741696,6.72056404,147.93,147.88,6.72056404]
[1750173741891,26.0,147.94,147.86,6.76307319]
[1750173742095,6.72056404,147.91,147.86,6.76307319]
[1750173742312,26.0,147.94,147.86,6.76307319]
[1750173742614,6.72056404,147.89,147.84,12.11248173]
[1750173742808,26.0,147.9,147.84,12.11248173]
[1750173742990,6.72056404,147.88,147.84,12.11248173]
[1750173744687,26.0,147.9,147.84,12.11248173]
[1750173744888,6.72056404,147.87,147.84,12.11248173]
[1750173745296,26.0,147.88,147.84,12.11282885]
[1750173745599,6.72056404,147.87,147.84,12.11282885]
[1750173746396,31.12,147.88,147.84,5.34886289]
[1750173746597,6.72056404,147.85,147.84,5.34886289]
[1750173746794,6.72056404,147.86,147.84,12.11280142]
[1750173747195,31.12,147.88,147.84,12.11288828]
[1750173747395,6.72056404,147.86,147.84,12.11288828]
[1750173747596,31.12,147.88,147.84,12.11288828]
[1750173747816,31.12,147.88,147.84,5.34886289]
[1750173748114,6.72056404,147.85,147.84,5.34886289]
[1750173748349,31.12,147.88,147.84,5.34886289]
[1750173748511,6.72056404,147.85,147.84,5.34886289]
[1750173749307,26.0,147.87,147.84,5.34886289]
[1750173749503,6.72056404,147.85,147.84,5.34886289]
[1750173749916,26.0,147.85,147.84,5.34886289]
[1750173750218,32.72056404,147.85,147.84,5.34886289]
[1750173751698,26.0,147.85,147.84,5.34886289]
[1750173751902,32.72056404,147.85,147.84,5.34886289]
[1750173752214,26.0,147.85,147.84,5.34886289]
[1750173752412,32.72056404,147.85,147.84,5.34886289]
[1750173753894,6.72056404,147.85,147.84,5.34886289]
[1750173754310,32.72056404,147.85,147.84,5.34886289]
[1750173754602,58.09077694,147.85,147.84,5.34886289]
[1750173755108,169.65113711,147.83,147.78,0.18]
[1750173755313,143.65113711,147.82,147.78,0.18]
[1750173755507,6.72056404,147.8,147.78,0.18]
[1750173756121,6.72056404,147.79,147.78,0.18]
[1750173757629,6.76564015,147.81,147.78,0.18]
[1750173757820,6.72056404,147.79,147.78,0.18]
[1750173758027,13.4869217,147.79,147.78,0.18]
[1750173759103,32.76606918,147.8,147.78,0.18]
[1750173759646,26.0,147.8,147.78,0.18]
[1750173759854,6.72056404,147.79,147.78,0.18]
[1750173761547,150.41749477,147.79,147.78,0.18]
[1750173761751,150.37170115,147.79,147.78,0.18]
[1750173761941,150.41749477,147.79,147.78,0.18]
[1750173762137,13.4869217,147.79,147.78,0.18]
[1750173763328,6.76635766,147.79,147.78,0.18]
[1750173763530,6.76635766,147.79,147.75,1.4324173]
[1750173763531,26.0,147.76,147.75,1.4324173]
[1750173763757,32.72056404,147.76,147.75,1.4324173]
[1750173764435,26.0,147.76,147.75,1.4324173]
[1750173764635,32.72056404,147.76,147.75,1.4324173]
[1750173765041,39.48829549,147.76,147.75,1.4324173]
[1750173765442,32.76773145,147.76,147.75,1.4324173]
[1750173765647,32.72056404,147.76,147.75,1.4324173]
[1750173766358,26.0,147.76,147.75,1.4324173]
[1750173766543,32.76773145,147.76,147.75,1.4324173]
[1750173766742,39.48829549,147.76,147.75,1.4324173]
[1750173770554,32.72056404,147.76,147.75,1.4324173]
[1750173770885,39.48829549,147.76,147.75,1.4324173]
[1750173772058,70.84829549,147.76,147.75,1.4324173]
[1750173773250,89.49794435,147.76,147.75,1.4324173]
[1750173774863,82.77738031,147.76,147.75,1.4324173]
[1750173775052,89.49794435,147.76,147.75,1.4324173]
[1750173776960,64.08056404,147.76,147.75,1.4324173]
[1750173777348,70.64829549,147.76,147.75,1.4324173]
[1750173777553,37.88056404,147.76,147.75,1.4324173]
[1750173778045,6.72056404,147.76,147.75,1.4324173]
[1750173778252,57.14,147.77,147.75,1.4324173]
[1750173778449,6.72056404,147.76,147.75,1.4324173]
[1750173778648,6.76773145,147.76,147.75,1.4324173]
[1750173778973,13.48829549,147.76,147.75,1.4324173]
[1750173779154,44.70829549,147.76,147.75,1.4324173]
[1750173779346,37.98773145,147.76,147.75,1.4324173]
[1750173779542,44.70829549,147.76,147.75,1.4324173]
[1750173780065,26.0,147.73,147.63,1.5356]
[1750173780257,26.0,147.71,147.62,6.5325]
[1750173780568,32.72056404,147.72,147.64,0.28432314]
[1750173780865,32.72056404,147.71,147.65,6.77232066]
[1750173781166,6.72056404,147.7,147.65,6.77232066]
[1750173781367,6.72056404,147.7,147.65,6.72056404]
[1750173781663,6.72056404,147.68,147.64,6.72056404]
[1750173781837,31.18,147.7,147.62,13.30650452]
[1750173782041,6.72056404,147.68,147.63,6.72056404]
[1750173782251,31.18,147.7,147.64,6.72056404]
[1750173782446,6.72056404,147.68,147.64,6.72056404]
[1750173782652,6.72056404,147.68,147.63,6.72056404]
[1750173782653,13.49218469,147.68,147.63,6.72056404]
[1750173783078,6.72056404,147.65,147.62,6.5325]
[1750173783248,6.72056404,147.63,147.6,5.39619796]
[1750173783454,6.72056404,147.62,147.6,5.39619796]
[1750173783778,6.72056404,147.67,147.61,6.72056404]
[1750173783986,14.82056404,147.68,147.64,6.72056404]
[1750173784165,14.82056404,147.68,147.6,29.10889453]
[1750173784166,156.7833,147.73,147.61,0.14216157]
[1750173784478,6.72056404,147.69,147.65,8.3009]
[1750173784677,26.0,147.72,147.65,15.02146404]
[1750173784879,6.72056404,147.7,147.66,6.77231477]
[1750173785080,6.72056404,147.71,147.67,6.72056404]
[1750173785280,206.14,147.73,147.67,6.72056404]
[1750173785602,6.72056404,147.71,147.67,6.72056404]
[1750173785923,206.14,147.73,147.66,6.77231477]
[1750173786060,149.0,147.73,147.66,23.70310171]
[1750173786399,6.72056404,147.67,147.62,6.77382958]
[1750173786698,6.72056404,147.68,147.63,6.72056404]
[1750173786876,6.72056404,147.69,147.64,6.72056404]
[1750173787180,26.0,147.71,147.61,14.65597334]
[1750173787385,26.0,147.71,147.66,6.72056404]
[1750173787561,37.86056404,147.72,147.67,6.72056404]
[1750173787766,37.86056404,147.72,147.64,0.28432314]
[1750173787979,6.72056404,147.71,147.67,6.72056404]
[1750173788365,6.72056404,147.7,147.61,14.65597334]
[1750173788689,6.72056404,147.7,147.57,33.88036974]
[1750173788690,6.72056404,147.63,147.6,5.39619796]
[1750173788984,37.91242578,147.66,147.6,12.116762]
[1750173789189,37.91242578,147.66,147.6,5.39619796]
[1750173789486,37.91002234,147.71,147.65,6.72056404]
[1750173789701,37.91002234,147.71,147.66,6.72056404]
[1750173789893,26.0,147.67,147.64,7.6405]
[1750173790097,6.72056404,147.66,147.61,8.24296404]
[1750173790289,26.0,147.67,147.63,6.72056404]
[1750173790487,26.0,147.69,147.61,1.5224]
[1750173790805,6.72056404,147.66,147.62,6.72056404]
[1750173791301,6.77139761,147.68,147.62,6.72056404]
[1750173791604,6.72056404,147.66,147.61,1.5224]
[1750173791769,6.77139761,147.68,147.61,1.5224]
[1750173791969,6.77139761,147.68,147.63,6.72056404]
[1750173792165,13.49196165,147.68,147.63,6.72056404]
[1750173792369,6.77139761,147.68,147.63,6.72056404]
[1750173792582,13.49196165,147.68,147.63,6.72056404]
[1750173792785,6.72056404,147.67,147.62,6.72056404]
[1750173792974,6.72056404,147.66,147.62,13.49454687]
[1750173793278,6.72056404,147.67,147.63,6.72056404]
[1750173793470,6.72056404,147.67,147.62,13.49454687]
[1750173793796,32.7710204,147.69,147.63,6.72056404]
[1750173793978,32.72056404,147.69,147.64,6.72056404]
[1750173794174,6.72056404,147.71,147.67,6.72056404]
[1750173794495,157.1,147.73,147.68,6.72056404]
[1750173794805,6.76773145,147.76,147.69,6.72056404]
[1750173795095,6.76773145,147.76,147.69,13.49117603]
[1750173795286,6.72056404,147.74,147.69,13.49117603]
[1750173795490,23.68706009,147.76,147.68,8.42043536]
[1750173795692,31.22,147.75,147.68,8.42043536]
[1750173795880,31.22,147.75,147.68,15.1409994]
[1750173796076,6.72056404,147.72,147.68,8.42043536]
[1750173796399,26.0,147.74,147.68,8.42043536]
[1750173796601,6.72056404,147.72,147.68,8.42043536]
[1750173796973,11.55878978,147.71,147.68,8.42048526]
[1750173797386,11.55878978,147.71,147.68,1.6491]
[1750173797591,11.55878978,147.7,147.65,0.14216157]
[1750173797790,11.55878978,147.7,147.66,11.55878978]
[1750173797975,11.55878978,147.7,147.64,1.87592314]
[1750173798178,11.55878978,147.7,147.66,11.55878978]
[1750173798582,11.55878978,147.67,147.64,1.5916]
[1750173798790,11.55878978,147.66,147.64,1.5916]
[1750173798986,6.7704807,147.7,147.64,1.5916]
[1750173799198,11.55878978,147.67,147.64,8.36477701]
[1750173799506,11.55878978,147.67,147.64,1.5916]
[1750173799798,11.55878978,147.67,147.63,12.90231704]
[1750173800106,11.55878978,147.66,147.63,12.90231704]
[1750173800400,11.55878978,147.67,147.63,12.90231704]
[1750173800699,11.55878978,147.66,147.63,6.77341704]
[1750173800920,6.77212489,147.67,147.62,6.77401503]
[1750173801111,11.55878978,147.66,147.62,6.77401503]
[1750173802015,32.77154143,147.68,147.62,6.77401503]
[1750173802194,11.55878978,147.66,147.62,18.33280481]
[1750173802574,26.0,147.68,147.62,6.77401503]
[1750173802874,11.55878978,147.67,147.63,11.55878978]
[1750173803074,32.77142618,147.68,147.63,11.55878978]
[1750173803305,11.55878978,147.67,147.62,18.33280481]
[1750173803481,11.55878978,147.66,147.62,6.77401503]
[1750173803682,11.55878978,147.67,147.62,18.33280481]
[1750173803886,11.55878978,147.67,147.63,11.55878978]
[1750173804293,11.55878978,147.67,147.62,6.77401503]
[1750173804603,26.0,147.68,147.62,18.33280481]
[1750173804803,11.55878978,147.67,147.62,18.33280481]
[1750173805484,11.55878978,147.66,147.62,6.77401503]
[1750173805809,11.55878978,147.66,147.62,18.33280481]
[1750173805998,11.55878978,147.67,147.63,11.55878978]
[1750173806305,11.55878978,147.67,147.63,18.33240728]
[1750173806501,11.55878978,147.67,147.63,6.7736175]
[1750173806706,32.77141678,147.68,147.63,6.7736175]
[1750173806879,11.55878978,147.67,147.63,18.33240728]
[1750173807404,26.0,147.68,147.63,18.33240728]
[1750173807592,11.55878978,147.67,147.63,18.33240728]
[1750173807799,26.0,147.68,147.63,6.7736175]
[1750173808001,11.55878978,147.67,147.63,18.33240728]
[1750173808389,11.55878978,147.65,147.6,20.14448253]
[1750173808580,11.55878978,147.67,147.63,11.55878978]
[1750173808915,149.0,147.74,147.66,11.55878978]
[1750173809090,37.55878978,147.71,147.67,11.55878978]
[1750173809278,11.55878978,147.72,147.68,11.55878978]
[1750173809481,11.55878978,147.71,147.67,11.55878978]
[1750173809696,31.14,147.73,147.67,11.55878978]
[1750173809897,11.55878978,147.71,147.67,18.33057731]
[1750173810108,18.32882769,147.71,147.63,16.93345291]
[1750173810293,11.55878978,147.7,147.66,11.55878978]
[1750173810476,18.32882769,147.71,147.66,11.55878978]
[1750173811102,37.55878978,147.72,147.68,11.55878978]
[1750173811276,11.55878978,147.74,147.69,11.55878978]
[1750173811589,11.55878978,147.71,147.67,1.6618]
[1750173812076,206.14,147.75,147.68,11.55878978]
[1750173812282,8.1,147.77,147.73,11.55878978]
[1750173812887,19.65878978,147.77,147.73,11.55878978]
[1750173813090,8.1,147.77,147.73,11.55878978]
[1750173813437,16.44674513,147.76,147.72,11.55878978]
[1750173813722,11.55878978,147.74,147.69,0.14216157]
[1750173814006,11.55878978,147.74,147.7,11.55878978]
[1750173814316,14.86740713,147.77,147.71,6.77002234]
[1750173814317,11.55878978,147.75,147.71,6.77002234]
[1750173814606,16.44709928,147.74,147.71,6.77002234]
[1750173814807,11.55878978,147.74,147.71,6.77002234]
[1750173815007,4.88806164,147.73,147.7,6.77038353]
[1750173815218,11.55878978,147.74,147.7,6.77038353]
[1750173815399,16.44709991,147.73,147.68,6.77139761]
[1750173815710,149.0,147.76,147.69,11.55878978]
[1750173815909,153.89168058,147.75,147.7,11.55878978]
[1750173816094,4.89168058,147.74,147.69,11.55878978]
[1750173816294,4.89168058,147.73,147.7,6.7704807]
[1750173816509,11.55878978,147.73,147.69,11.55878978]
[1750173816690,155.76821779,147.75,147.69,11.55878978]
[1750173816899,16.44951711,147.74,147.69,11.55878978]
[1750173817101,4.89072733,147.73,147.69,11.55878978]
[1750173817305,149.0,147.75,147.72,11.55878978]
[1750173817605,4.8909654,147.74,147.71,11.55878978]
[1750173817806,160.55878978,147.75,147.71,11.55878978]
[1750173818117,4.89035236,147.74,147.71,11.55878978]
[1750173818299,160.55878978,147.75,147.71,18.32862455]
[1750173818500,4.89187718,147.74,147.71,18.32862455]
[1750173818712,149.0,147.75,147.71,18.32862455]
[1750173818903,4.89185396,147.74,147.71,13.50898157]
[1750173819087,155.7391468,147.75,147.71,13.50898157]
[1750173819288,14.8391468,147.77,147.73,6.7391468]
[1750173819512,11.63121958,147.76,147.71,13.50898157]
[1750173819816,4.89207278,147.75,147.72,6.7391468]
[1750173820017,8.1,147.77,147.73,6.7391468]
[1750173820194,4.89274915,147.76,147.75,6.7391468]
[1750173820382,4.89274915,147.76,147.73,13.50814303]
[1750173820589,6.7391468,147.74,147.7,6.7704807]
[1750173820784,6.7391468,147.74,147.7,13.5096275]
[1750173821006,26.0,147.77,147.7,13.5096275]
[1750173821198,6.7391468,147.75,147.71,6.7391468]
[1750173822720,6.7391468,147.77,147.72,13.50871084]
[1750173823099,4.89581964,147.76,147.72,13.50871084]
[1750173823285,6.7391468,147.77,147.72,13.50871084]
[1750173823515,4.89595937,147.76,147.72,13.50871084]
[1750173823713,32.76652711,147.79,147.72,13.50871084]
[1750173823932,6.7391468,147.76,147.72,13.50871084]
[1750173824131,32.76652711,147.79,147.72,13.50871084]
[1750173824334,6.7391468,147.76,147.72,13.50871084]
[1750173824925,6.7391468,147.74,147.7,6.7704807]
[1750173825620,26.0,147.76,147.7,6.7704807]
[1750173825842,6.7391468,147.72,147.67,7.7762]
[1750173826051,6.7391468,147.72,147.68,6.7391468]
[1750173826222,6.7391468,147.73,147.68,6.7391468]
[1750173826559,6.7391468,147.7,147.66,6.7391468]
[1750173826720,6.7391468,147.69,147.65,6.7391468]
[1750173827052,6.7391468,147.69,147.65,13.51158253]
[1750173827555,6.77025372,147.71,147.64,6.77318675]
[1750173827556,6.7391468,147.68,147.64,6.77318675]
[1750173828257,37.87025372,147.71,147.63,14.9842468]
[1750173828258,6.7391468,147.67,147.63,8.41163071]
[1750173828489,6.7391468,147.67,147.63,15.15077751]
[1750173828623,6.7391468,147.67,147.63,8.3772468]
[1750173828819,6.7391468,147.65,147.6,5.39619796]
[1750173829038,6.7391468,147.64,147.6,12.1711036]
[1750173829353,6.7391468,147.63,147.6,5.39619796]
[1750173829941,6.7391468,147.61,147.6,5.39619796]
[1750173830617,56.48879566,147.61,147.6,5.39619796]
[1750173830817,6.77644507,147.57,147.51,8.39744222]
[1750173831124,11.58570272,147.52,147.48,6.78058041]
[1750173831327,11.58570272,147.5,147.46,1.5694]
[1750173831532,11.58570272,147.5,147.46,8.35069908]
[1750173831739,18.64964886,147.56,147.46,25.30444924]
[1750173831960,45.07613357,147.61,147.54,11.58570272]
[1750173832275,13.00065326,147.62,147.56,11.58570272]
[1750173832559,26.0,147.61,147.56,11.58570272]
[1750173832734,11.58570272,147.6,147.56,11.58570272]
[1750173833077,26.0,147.61,147.52,0.14216157]
[1750173833369,26.0,147.61,147.51,16.94698167]
[1750173833370,11.58570272,147.58,147.51,16.94698167]
[1750173833518,11.58570272,147.56,147.49,6.78012068]
[1750173833722,11.58570272,147.56,147.51,11.58570272]
[1750173834149,11.58570272,147.55,147.49,6.78012068]
[1750173834449,26.0,147.58,147.5,11.58570272]
[1750173834638,11.58570272,147.55,147.51,11.58570272]
[1750173834818,11.58570272,147.55,147.51,6.77920141]
[1750173835348,11.58570272,147.55,147.51,18.36490413]
[1750173835515,37.58570272,147.58,147.53,11.58570272]
[1750173835722,37.58570272,147.58,147.54,11.58570272]
[1750173835723,26.0,147.58,147.54,11.58570272]
[1750173835947,26.0,147.58,147.52,11.58570272]
[1750173835948,11.58570272,147.56,147.52,11.58570272]
[1750173836145,37.87563233,147.59,147.51,6.77920141]
[1750173836146,11.58570272,147.57,147.53,11.58570272]
[1750173836363,11.58570272,147.58,147.53,11.58570272]
[1750173836535,11.58570272,147.57,147.51,23.72720493]
[1750173836723,11.58570272,147.56,147.51,23.72720493]
[1750173837055,11.58570272,147.56,147.52,11.58570272]
[1750173837720,11.58570272,147.57,147.53,11.58570272]
[1750173838025,11.58570272,147.58,147.54,11.58570272]
[1750173838218,42.68570272,147.59,147.54,11.58570272]
[1750173838730,11.58570272,147.6,147.52,0.28432314]
[1750173838929,11.58570272,147.59,147.56,6.77690431]
[1750173839130,35.66661787,147.62,147.56,6.77690431]
[1750173839318,11.58570272,147.6,147.56,18.36260703]
[1750173840049,11.58570272,147.6,147.56,6.77690431]
[1750173840247,11.58570272,147.59,147.56,6.77690431]
[1750173840447,11.58570272,147.57,147.54,6.77782296]
[1750173841464,11.58570272,147.56,147.52,11.58570272]
[1750173841628,6.77511849,147.6,147.52,11.58570272]
[1750173841824,11.58570272,147.56,147.52,11.58570272]
[1750173842425,11.58570272,147.56,147.51,23.72720493]
[1750173842624,11.58570272,147.56,147.52,11.58570272]
[1750173842861,26.0,147.57,147.51,23.72720493]
[1750173843062,26.0,147.57,147.52,11.58570272]
[1750173843262,11.58570272,147.55,147.5,6.77966101]
[1750173843445,11.58570272,147.55,147.51,11.58570272]
[1750173843633,11.58570272,147.54,147.5,18.36536373]
[1750173843833,11.58570272,147.53,147.5,6.77966101]
[1750173844040,181.7765648,147.57,147.49,18.36568155]
[1750173844265,149.0,147.56,147.49,35.31598326]
[1750173844429,160.58570272,147.56,147.51,11.58570272]
[1750173844630,160.58570272,147.56,147.49,23.73028054]
[1750173844631,11.58570272,147.53,147.49,6.77997883]
[1750173844930,11.58570272,147.51,147.49,6.77997883]
[1750173845150,11.58570272,147.52,147.48,18.36628313]
[1750173845331,11.58570272,147.52,147.48,6.78058041]
[1750173845724,11.58570272,147.51,147.48,6.78058041]
[1750173845924,11.58570272,147.51,147.47,18.36658559]
[1750173846346,11.58570272,147.51,147.47,6.78088287]
[1750173846736,175.0,147.56,147.5,11.58570272]
[1750173846930,186.58570272,147.56,147.51,11.58570272]
[1750173847257,8.08,147.58,147.54,11.58570272]
[1750173847453,8.08,147.58,147.52,6.77874186]
[1750173847454,8.08,147.58,147.52,23.72559652]
[1750173847758,11.58570272,147.57,147.52,18.36444458]
[1750173847953,11.58570272,147.55,147.52,6.77874186]
[1750173848456,11.58570272,147.55,147.49,16.94926737]
[1750173848746,11.58570272,147.56,147.52,11.58570272]
[1750173849155,11.58570272,147.56,147.53,6.77828238]
[1750173849360,11.58570272,147.57,147.53,6.77828238]
[1750173849535,40.85600548,147.58,147.53,6.77828238]
[1750173849729,11.58570272,147.56,147.53,6.77828238]
[1750173850636,34.08,147.58,147.53,18.3639851]
[1750173850952,8.08,147.58,147.55,11.58570272]
[1750173851162,8.08,147.58,147.56,6.77690431]
[1750173851684,8.08,147.58,147.52,11.58570272]
[1750173851967,11.58570272,147.57,147.52,11.58570272]
[1750173852143,11.58570272,147.56,147.52,11.58570272]
[1750173852542,11.58570272,147.56,147.51,23.72720493]
[1750173852849,11.58570272,147.55,147.51,6.77920141]
[1750173853043,11.58570272,147.55,147.51,11.58570272]
[1750173853253,11.58570272,147.56,147.52,11.58570272]
[1750173853452,8.08,147.58,147.54,11.58570272]
[1750173853655,11.58570272,147.57,147.53,11.58570272]
[1750173853857,11.58570272,147.57,147.52,11.58570272]
[1750173854758,19.66570272,147.58,147.53,11.58570272]
[1750173855171,19.66570272,147.58,147.54,6.77782296]
[1750173855473,11.58570272,147.57,147.54,6.77782296]
[1750173855638,8.08,147.58,147.54,6.77782296]
[1750173855839,8.08,147.58,147.51,11.58570272]
[1750173856070,8.08,147.58,147.49,23.72946727]
[1750173856242,11.58570272,147.57,147.52,11.58570272]
[1750173857237,8.08,147.58,147.51,6.77920141]
[1750173857451,11.58570272,147.57,147.52,11.58570272]
[1750173857852,11.58570272,147.57,147.51,23.72720493]
[1750173857853,11.58570272,147.56,147.51,6.77920141]
[1750173858062,11.58570272,147.56,147.52,11.58570272]
[1750173858749,11.58570272,147.56,147.51,6.77920141]
[1750173858978,6.75712074,147.57,147.51,23.72720493]
[1750173859189,6.75712074,147.57,147.53,6.75712074]
[1750173859400,8.08,147.58,147.54,6.77782296]
[1750173859555,149.0,147.57,147.5,0.14216157]
[1750173859892,149.0,147.57,147.55,6.75712074]
[1750173860191,149.0,147.57,147.54,6.75712074]
[1750173860488,149.0,147.57,147.56,6.75712074]
[1750173860986,3.44021787,147.62,147.56,6.75712074]
[1750173861146,155.75712074,147.63,147.59,6.75712074]
[1750173861353,149.0,147.63,147.56,23.71916508]
[1750173861576,155.75712074,147.63,147.56,23.71916508]
[1750173861791,155.75712074,147.63,147.58,6.75712074]
[1750173861792,6.75712074,147.62,147.58,6.75712074]
[1750173861947,6.75712074,147.6,147.56,6.77690431]
[1750173862154,6.75712074,147.59,147.56,6.77690431]
[1750173862467,4.84012729,147.62,147.56,6.77690431]
[1750173862468,6.75712074,147.58,147.56,6.77690431]
[1750173862679,6.75712074,147.59,147.56,6.77690431]
[1750173863769,149.0,147.61,147.55,6.75712074]
[1750173863968,6.75712074,147.6,147.55,6.75712074]
[1750173864481,6.75712074,147.6,147.53,23.72289885]
[1750173864664,155.75712074,147.61,147.56,6.75712074]
[1750173864864,149.0,147.61,147.59,6.75712074]
[1750173865076,6.75712074,147.63,147.59,6.75712074]
[1750173865274,4.84871847,147.63,147.55,0.14216157]
[1750173865483,4.84871847,147.63,147.55,6.75712074]
[1750173865484,6.75712074,147.6,147.55,6.75712074]
[1750173865690,8.17675203,147.62,147.56,6.77690431]
[1750173865870,6.75712074,147.59,147.56,6.77690431]
[1750173866556,6.75712074,147.6,147.56,6.77690431]
[1750173867071,4.85778437,147.59,147.55,11.57796538]
[1750173867263,11.57796538,147.6,147.55,11.57796538]
[1750173867579,16.43739919,147.59,147.53,23.72289885]
[1750173867776,11.57796538,147.59,147.55,11.57796538]
[1750173868458,11.57796538,147.6,147.54,0.14216157]
[1750173868785,4.85969418,147.59,147.54,0.14216157]
[1750173868995,11.57796538,147.6,147.56,11.57796538]
[1750173869159,4.85927795,147.59,147.56,11.57796538]
[1750173869360,4.85927795,147.58,147.56,0.42648471]
[1750173869565,8.04,147.64,147.58,0.14216157]
[1750173869566,4.87462779,147.63,147.58,0.14216157]
[1750173869764,4.87462779,147.62,147.58,0.14216157]
[1750173869982,4.87462779,147.63,147.58,0.14216157]
[1750173872690,4.88274095,147.62,147.59,18.35349217]
[1750173872903,11.57796538,147.63,147.59,18.35349217]
[1750173873080,149.0,147.64,147.59,18.35349217]
[1750173873275,11.57796538,147.63,147.59,6.77552679]
[1750173873510,149.0,147.64,147.6,11.57796538]
[1750173873805,149.0,147.64,147.61,11.57796538]
[1750173874171,149.0,147.64,147.6,11.57796538]
[1750173874370,149.0,147.64,147.59,23.71434378]
[1750173874574,149.0,147.64,147.59,35.29230916]
[1750173874779,160.57796538,147.64,147.59,35.29230916]
[1750173874991,11.57796538,147.63,147.59,23.71434378]
[1750173875374,11.57796538,147.63,147.59,35.29230916]
[1750173875574,149.0,147.64,147.59,35.29230916]
[1750173875878,155.77123715,147.69,147.6,0.14216157]
[1750173876123,11.57796538,147.67,147.62,11.57796538]
[1750173876396,11.57796538,147.66,147.6,0.14216157]
[1750173876707,30.88406288,147.68,147.61,11.57796538]
[1750173876910,11.57796538,147.67,147.63,11.57796538]
[1750173877086,11.57796538,147.66,147.62,11.57796538]
[1750173877289,11.57796538,147.66,147.63,6.77369098]
[1750173877689,37.6554816,147.68,147.63,6.77369098]
[1750173877690,32.77141872,147.68,147.63,6.77369098]
[1750173877893,11.57796538,147.65,147.63,6.77369098]
[1750173878085,11.57796538,147.64,147.6,18.35303313]
[1750173878280,11.57796538,147.64,147.6,6.77506775]
[1750173878782,11.57796538,147.64,147.6,18.35303313]
[1750173879586,11.57796538,147.65,147.6,18.35303313]
[1750173879979,11.57796538,147.65,147.61,11.57796538]